[Event "Early-Titled-Tuesday-Blitz-October-10-2023"]
[Site "Chess.com"]
[Date "2023.10.10"]
[Round "2"]
[White "Iskusnyh"]
[Black "Josgar05"]
[Result "1-0"]
[WhiteElo "2591"]
[BlackElo "2235"]
[TimeControl "180+1"]
[EndTime "8:18:06 PDT"]
[Termination "Iskusnyh won by checkmate"]

1. d4 {[%clk 0:03:00.9]} 1... Nf6 {[%clk 0:02:59]} 2. c4 {[%clk 0:03:00.3]} 2...
c5 {[%clk 0:02:57.1]} 3. d5 {[%clk 0:02:59.8]} 3... b5 {[%clk 0:02:56.9]} 4.
cxb5 {[%clk 0:02:59]} 4... a6 {[%clk 0:02:57.4]} 5. e3 {[%clk 0:02:58.2]} 5...
g6 {[%clk 0:02:56.8]} 6. Nc3 {[%clk 0:02:44.4]} 6... Bg7 {[%clk 0:02:56.4]} 7.
a4 {[%clk 0:02:40]} 7... O-O {[%clk 0:02:55.7]} 8. e4 {[%clk 0:02:37.2]} 8... e6
{[%clk 0:02:55.3]} 9. e5 {[%clk 0:02:33.7]} 9... Ne8 {[%clk 0:02:42.5]} 10. Nf3
{[%clk 0:02:23]} 10... axb5 {[%clk 0:02:42.4]} 11. Bxb5 {[%clk 0:02:20.2]} 11...
Nc7 {[%clk 0:02:35.5]} 12. Bg5 {[%clk 0:02:09.8]} 12... Qe8 {[%clk 0:02:20.3]}
13. O-O {[%clk 0:02:05.3]} 13... Nxb5 {[%clk 0:02:10.9]} 14. Nxb5 {[%clk
0:02:03.7]} 14... d6 {[%clk 0:01:33]} 15. Nc7 {[%clk 0:01:51.7]} 15... Qd7
{[%clk 0:01:31.9]} 16. Nxa8 {[%clk 0:01:51.4]} 16... Qb7 {[%clk 0:01:32.6]} 17.
dxe6 {[%clk 0:01:42.5]} 17... Bxe6 {[%clk 0:01:29.4]} 18. Qxd6 {[%clk
0:01:40.5]} 18... Qxa8 {[%clk 0:01:27.4]} 19. Qxc5 {[%clk 0:01:32.6]} 19... Nd7
{[%clk 0:01:26.8]} 20. Qe3 {[%clk 0:01:30.3]} 20... Rb8 {[%clk 0:01:21.5]} 21.
Bh6 {[%clk 0:01:13.3]} 21... Rb3 {[%clk 0:01:18.2]} 22. Qf4 {[%clk 0:01:00.9]}
22... Bxh6 {[%clk 0:01:11.4]} 23. Qxh6 {[%clk 0:01:00.2]} 23... Rxf3 {[%clk
0:01:12]} 24. Rfe1 {[%clk 0:00:40.8]} 24... Rb3 {[%clk 0:01:04.7]} 25. Qd2
{[%clk 0:00:39.5]} 25... Kg7 {[%clk 0:01:03.2]} 26. Re3 {[%clk 0:00:38.7]} 26...
Rb6 {[%clk 0:00:52.2]} 27. b4 {[%clk 0:00:37.5]} 27... Qc6 {[%clk 0:00:51.3]}
28. b5 {[%clk 0:00:36.2]} 28... Qc4 {[%clk 0:00:47.9]} 29. Rc1 {[%clk
0:00:34.7]} 29... Qxa4 {[%clk 0:00:47.3]} 30. h3 {[%clk 0:00:29.9]} 30... Qxb5
{[%clk 0:00:46]} 31. Qd4 {[%clk 0:00:26]} 31... Ra6 {[%clk 0:00:41.7]} 32. Ree1
{[%clk 0:00:17]} 32... Ra2 {[%clk 0:00:40.5]} 33. Ra1 {[%clk 0:00:15.2]} 33...
Rxa1 {[%clk 0:00:36.7]} 34. Qxa1 {[%clk 0:00:14.4]} 34... Qd3 {[%clk 0:00:33.4]}
35. Qb2 {[%clk 0:00:12.9]} 35... h5 {[%clk 0:00:31.1]} 36. Qc1 {[%clk
0:00:12.4]} 36... Qd4 {[%clk 0:00:27.4]} 37. Qg5 {[%clk 0:00:12]} 37... Qc3
{[%clk 0:00:24.5]} 38. Re3 {[%clk 0:00:11.7]} 38... Qc1+ {[%clk 0:00:22.8]} 39.
Kh2 {[%clk 0:00:11.8]} 39... Qb2 {[%clk 0:00:22]} 40. Qf4 {[%clk 0:00:11.3]}
40... Qa2 {[%clk 0:00:19.3]} 41. g4 {[%clk 0:00:11.4]} 41... hxg4 {[%clk
0:00:19.5]} 42. hxg4 {[%clk 0:00:11.6]} 42... Kf8 {[%clk 0:00:16.4]} 43. Rh3
{[%clk 0:00:09.8]} 43... Nc5 {[%clk 0:00:08.9]} 44. Rh8+ {[%clk 0:00:09.1]}
44... Kg7 {[%clk 0:00:09]} 45. Qf6# {[%clk 0:00:09.3]} 1-0

[Event "Early-Titled-Tuesday-Blitz-October-10-2023"]
[Site "Chess.com"]
[Date "2023.10.10"]
[Round "2"]
[White "Oleksandr_Bortnyk"]
[Black "SmirnovAlexandrA"]
[Result "1-0"]
[WhiteElo "3053"]
[BlackElo "2631"]
[TimeControl "180+1"]
[EndTime "8:18:07 PDT"]
[Termination "Oleksandr_Bortnyk won on time"]

1. e4 {[%clk 0:03:00]} 1... c5 {[%clk 0:02:56.7]} 2. c3 {[%clk 0:03:00.4]} 2...
d6 {[%clk 0:02:56.5]} 3. d4 {[%clk 0:02:59.8]} 3... Nf6 {[%clk 0:02:56.5]} 4.
Bd3 {[%clk 0:02:58.4]} 4... g6 {[%clk 0:02:51.3]} 5. dxc5 {[%clk 0:02:56.6]}
5... dxc5 {[%clk 0:02:51]} 6. e5 {[%clk 0:02:57.2]} 6... Nd5 {[%clk 0:02:50.3]}
7. Be4 {[%clk 0:02:56.2]} 7... Be6 {[%clk 0:02:24.6]} 8. c4 {[%clk 0:02:53]}
8... Nb4 {[%clk 0:02:24.3]} 9. Qxd8+ {[%clk 0:02:52.7]} 9... Kxd8 {[%clk
0:02:25.2]} 10. Bxb7 {[%clk 0:02:52.8]} 10... Nc2+ {[%clk 0:02:20.1]} 11. Kd1
{[%clk 0:02:52.9]} 11... Nxa1 {[%clk 0:02:21]} 12. Bxa8 {[%clk 0:02:53.4]} 12...
Bg7 {[%clk 0:02:12]} 13. Nf3 {[%clk 0:02:45.9]} 13... Bxc4 {[%clk 0:02:08.6]}
14. b3 {[%clk 0:02:46]} 14... Bd3 {[%clk 0:02:03.5]} 15. Na3 {[%clk 0:02:46.5]}
15... Kc7 {[%clk 0:01:49.8]} 16. Bb2 {[%clk 0:02:35.8]} 16... Rd8 {[%clk
0:01:48.8]} 17. Nd2 {[%clk 0:02:28.2]} 17... Bh6 {[%clk 0:01:34.5]} 18. Bxa1
{[%clk 0:02:18.5]} 18... Bxd2 {[%clk 0:01:31.7]} 19. Kxd2 {[%clk 0:02:19.4]}
19... Be4+ {[%clk 0:01:31.9]} 20. Ke3 {[%clk 0:02:20.3]} 20... Bxa8 {[%clk
0:01:32]} 21. f3 {[%clk 0:02:21.2]} 21... a6 {[%clk 0:01:03.5]} 22. Rc1 {[%clk
0:02:19.2]} 22... Nd7 {[%clk 0:00:54.4]} 23. b4 {[%clk 0:02:17.7]} 23... Bd5
{[%clk 0:00:42.8]} 24. Bd4 {[%clk 0:02:04.8]} 24... Bxa2 {[%clk 0:00:37.2]} 25.
Bxc5 {[%clk 0:02:05.4]} 25... Nxc5 {[%clk 0:00:37]} 26. Rxc5+ {[%clk 0:02:06.3]}
26... Kb7 {[%clk 0:00:27.8]} 27. Nc2 {[%clk 0:02:01.7]} 27... f6 {[%clk
0:00:19.5]} 28. Nd4 {[%clk 0:01:58.3]} 28... Rc8 {[%clk 0:00:14.2]} 29. Rxc8
{[%clk 0:01:47.9]} 29... Kxc8 {[%clk 0:00:15.1]} 30. f4 {[%clk 0:01:48.7]} 30...
Bd5 {[%clk 0:00:14.4]} 31. g4 {[%clk 0:01:49]} 31... Kb7 {[%clk 0:00:14.1]} 32.
h4 {[%clk 0:01:47.5]} 32... Kb6 {[%clk 0:00:14.1]} 33. h5 {[%clk 0:01:47.7]}
33... a5 {[%clk 0:00:11.8]} 34. bxa5+ {[%clk 0:01:46.6]} 34... Kxa5 {[%clk
0:00:12.7]} 35. h6 {[%clk 0:01:44.9]} 35... Kb6 {[%clk 0:00:11.8]} 36. g5 {[%clk
0:01:37.6]} 36... fxg5 {[%clk 0:00:11.3]} 37. fxg5 {[%clk 0:01:37.2]} 37... Kc7
{[%clk 0:00:11.6]} 38. Ne2 {[%clk 0:01:37.3]} 38... Kd7 {[%clk 0:00:11.9]} 39.
Nf4 {[%clk 0:01:38.2]} 39... Bg8 {[%clk 0:00:11.7]} 40. Kd4 {[%clk 0:01:37.5]}
40... Kc6 {[%clk 0:00:11.9]} 41. Nd3 {[%clk 0:01:31.9]} 41... Bf7 {[%clk
0:00:11.1]} 42. Nb4+ {[%clk 0:01:25.9]} 42... Kd7 {[%clk 0:00:10.4]} 43. Na6
{[%clk 0:01:17.6]} 43... Ke6 {[%clk 0:00:09.7]} 44. Ke4 {[%clk 0:01:18.1]} 44...
Kd7 {[%clk 0:00:08.6]} 45. Nc5+ {[%clk 0:01:17.1]} 45... Kc6 {[%clk 0:00:09]}
46. Kd4 {[%clk 0:01:15]} 46... Bg8 {[%clk 0:00:08.1]} 47. Nd3 {[%clk 0:01:09.4]}
47... Kd7 {[%clk 0:00:07.8]} 48. Nf4 {[%clk 0:00:34.2]} 48... Kc6 {[%clk
0:00:07.6]} 49. Ke3 {[%clk 0:00:35.1]} 49... Bf7 {[%clk 0:00:06.5]} 50. Ke4
{[%clk 0:00:33.6]} 50... Bg8 {[%clk 0:00:06.6]} 51. Kd4 {[%clk 0:00:31.8]} 51...
Bf7 {[%clk 0:00:06.8]} 52. e6 {[%clk 0:00:32.5]} 52... Bg8 {[%clk 0:00:06.4]}
53. Ke5 {[%clk 0:00:33.3]} 53... Kc5 {[%clk 0:00:06.5]} 54. Nd5 {[%clk
0:00:33.3]} 54... Kc6 {[%clk 0:00:02.2]} 55. Nxe7+ {[%clk 0:00:33.5]} 1-0

[Event "Early-Titled-Tuesday-Blitz-October-10-2023"]
[Site "Chess.com"]
[Date "2023.10.10"]
[Round "2"]
[White "Balla_Tamas"]
[Black "Better_Chess_Faster"]
[Result "1-0"]
[WhiteElo "2432"]
[BlackElo "2067"]
[TimeControl "180+1"]
[EndTime "8:18:15 PDT"]
[Termination "Balla_Tamas won on time"]

1. e4 {[%clk 0:02:57.5]} 1... Nf6 {[%clk 0:02:59.7]} 2. e5 {[%clk 0:02:57.5]}
2... Nd5 {[%clk 0:02:59.6]} 3. c4 {[%clk 0:02:58.1]} 3... Nb6 {[%clk 0:02:59.1]}
4. d4 {[%clk 0:02:58.8]} 4... d6 {[%clk 0:02:59.4]} 5. f4 {[%clk 0:02:59.6]}
5... g6 {[%clk 0:02:58.3]} 6. Be3 {[%clk 0:02:58.4]} 6... Bg7 {[%clk 0:02:56.5]}
7. Nc3 {[%clk 0:02:58.8]} 7... Be6 {[%clk 0:02:53.1]} 8. d5 {[%clk 0:02:49.3]}
8... Bf5 {[%clk 0:02:50.5]} 9. Nf3 {[%clk 0:02:39.8]} 9... dxe5 {[%clk
0:02:47.9]} 10. fxe5 {[%clk 0:02:38.3]} 10... N8d7 {[%clk 0:02:45.7]} 11. c5
{[%clk 0:02:15.2]} 11... Nc8 {[%clk 0:02:39.7]} 12. Bd4 {[%clk 0:02:12]} 12...
e6 {[%clk 0:02:36.5]} 13. d6 {[%clk 0:02:10.3]} 13... cxd6 {[%clk 0:02:34]} 14.
exd6 {[%clk 0:02:11.2]} 14... e5 {[%clk 0:02:30.5]} 15. Bf2 {[%clk 0:02:09.2]}
15... O-O {[%clk 0:02:21.4]} 16. Bc4 {[%clk 0:02:08.8]} 16... e4 {[%clk
0:02:18.8]} 17. Nd4 {[%clk 0:01:43.8]} 17... e3 {[%clk 0:02:13.2]} 18. Bxe3
{[%clk 0:01:37.2]} 18... Re8 {[%clk 0:02:09.1]} 19. Nxf5 {[%clk 0:01:36.9]}
19... gxf5 {[%clk 0:02:07.9]} 20. O-O {[%clk 0:01:13.5]} 20... Rxe3 {[%clk
0:02:05.3]} 21. Rxf5 {[%clk 0:01:13.4]} 21... Ne5 {[%clk 0:01:59.4]} 22. Qd5
{[%clk 0:01:05.1]} 22... Qd7 {[%clk 0:01:50.3]} 23. Raf1 {[%clk 0:01:03.8]}
23... Nxc4 {[%clk 0:01:41.3]} 24. Rxf7 {[%clk 0:00:44.3]} 24... Qe6 {[%clk
0:01:41.1]} 25. Qg5 {[%clk 0:00:27.5]} 25... Qxf7 {[%clk 0:01:12.1]} 26. Rxf7
{[%clk 0:00:28.4]} 26... Kxf7 {[%clk 0:00:56.7]} 27. Qf4+ {[%clk 0:00:28.5]}
27... Ke8 {[%clk 0:00:41.8]} 28. Qxc4 {[%clk 0:00:28.3]} 28... Bxc3 {[%clk
0:00:22.4]} 29. bxc3 {[%clk 0:00:19]} 29... Nxd6 {[%clk 0:00:20.1]} 30. Qg8+
{[%clk 0:00:18.2]} 30... Kd7 {[%clk 0:00:19.3]} 31. Qxa8 {[%clk 0:00:18.4]}
31... Ne4 {[%clk 0:00:14.1]} 32. Qxb7+ {[%clk 0:00:18.5]} 32... Ke6 {[%clk
0:00:13.5]} 33. Qb3+ {[%clk 0:00:16.8]} 33... Ke5 {[%clk 0:00:12.4]} 34. h3
{[%clk 0:00:09.8]} 34... Nxc5 {[%clk 0:00:09.5]} 35. Qa3 {[%clk 0:00:06.1]}
35... Ne4 {[%clk 0:00:09.2]} 36. Qxa7 {[%clk 0:00:06.3]} 36... Rxc3 {[%clk
0:00:08.7]} 37. Qxh7 {[%clk 0:00:06]} 37... Rc1+ {[%clk 0:00:07.4]} 38. Kh2
{[%clk 0:00:06.1]} 38... Rc2 {[%clk 0:00:08.3]} 39. Qg7+ {[%clk 0:00:06.1]}
39... Kd5 {[%clk 0:00:07.8]} 40. Qd7+ {[%clk 0:00:06.5]} 40... Kc4 {[%clk
0:00:07.4]} 41. Qc6+ {[%clk 0:00:05.7]} 41... Kd3 {[%clk 0:00:07.4]} 42. Qd5+
{[%clk 0:00:06.4]} 42... Ke3 {[%clk 0:00:06.4]} 43. a4 {[%clk 0:00:06.2]} 43...
Rd2 {[%clk 0:00:04.5]} 44. Qb3+ {[%clk 0:00:04.7]} 44... Rd3 {[%clk 0:00:04.3]}
45. Qb1 {[%clk 0:00:05.1]} 45... Rd4 {[%clk 0:00:03.4]} 46. a5 {[%clk
0:00:05.5]} 46... Rd6 {[%clk 0:00:01.1]} 47. Qc1+ {[%clk 0:00:03.9]} 1-0

[Event "Early-Titled-Tuesday-Blitz-October-10-2023"]
[Site "Chess.com"]
[Date "2023.10.10"]
[Round "2"]
[White "LUISMIGUELOV"]
[Black "DvaHrasta"]
[Result "0-1"]
[WhiteElo "2132"]
[BlackElo "2452"]
[TimeControl "180+1"]
[EndTime "8:18:18 PDT"]
[Termination "DvaHrasta won by resignation"]

1. d4 {[%clk 0:03:00.9]} 1... Nf6 {[%clk 0:02:59]} 2. c3 {[%clk 0:02:58.5]} 2...
e6 {[%clk 0:02:56]} 3. Bg5 {[%clk 0:02:58.2]} 3... c5 {[%clk 0:02:55.5]} 4. e3
{[%clk 0:02:56.5]} 4... Qb6 {[%clk 0:02:55.2]} 5. Qb3 {[%clk 0:02:55.2]} 5... d5
{[%clk 0:02:53.5]} 6. Bxf6 {[%clk 0:02:54.7]} 6... gxf6 {[%clk 0:02:52.9]} 7.
Qxb6 {[%clk 0:02:54.1]} 7... axb6 {[%clk 0:02:52.2]} 8. a3 {[%clk 0:02:47.1]}
8... c4 {[%clk 0:02:48.8]} 9. Nd2 {[%clk 0:02:38.2]} 9... b5 {[%clk 0:02:48.1]}
10. b4 {[%clk 0:02:35.8]} 10... Nd7 {[%clk 0:02:40.7]} 11. e4 {[%clk 0:02:35.5]}
11... Nb6 {[%clk 0:02:36.8]} 12. f4 {[%clk 0:02:26.5]} 12... Bd7 {[%clk
0:02:25.1]} 13. Ne2 {[%clk 0:02:24.3]} 13... Bc6 {[%clk 0:02:23]} 14. exd5
{[%clk 0:02:22.7]} 14... Nxd5 {[%clk 0:02:16.6]} 15. Rg1 {[%clk 0:02:01.5]}
15... h5 {[%clk 0:02:12.2]} 16. g3 {[%clk 0:01:57.4]} 16... h4 {[%clk
0:02:10.8]} 17. g4 {[%clk 0:01:56.4]} 17... Bd6 {[%clk 0:02:08.2]} 18. Bg2
{[%clk 0:01:51.6]} 18... Nxf4 {[%clk 0:01:58.9]} 19. Bxc6+ {[%clk 0:01:47.2]}
19... bxc6 {[%clk 0:01:56.8]} 20. Ne4 {[%clk 0:01:47.3]} 20... Nd3+ {[%clk
0:01:45.9]} 21. Kd2 {[%clk 0:01:46.8]} 21... Bxh2 {[%clk 0:01:39.7]} 22. Nxf6+
{[%clk 0:01:38.4]} 22... Ke7 {[%clk 0:01:38.9]} 23. Rh1 {[%clk 0:01:38.3]} 23...
Kxf6 {[%clk 0:01:26.6]} 24. Rxh2 {[%clk 0:01:37.3]} 24... Kg5 {[%clk 0:01:25.3]}
25. Nc1 {[%clk 0:01:26.4]} 25... Nxc1 {[%clk 0:01:20.2]} 26. Rxc1 {[%clk
0:01:24.7]} 26... Rxa3 {[%clk 0:01:17.6]} 27. Rc2 {[%clk 0:01:19.3]} 27... h3
{[%clk 0:01:14.3]} 28. Ke3 {[%clk 0:01:15]} 28... Kxg4 {[%clk 0:01:14]} 29. Rc1
{[%clk 0:01:13.1]} 29... Kh4 {[%clk 0:01:05.9]} 30. Rf2 {[%clk 0:01:09.2]} 30...
f5 {[%clk 0:01:03.2]} 31. Kf4 {[%clk 0:01:06.6]} 31... Rg8 {[%clk 0:00:56.4]}
32. Rf3 {[%clk 0:01:04.6]} 32... Rg2 {[%clk 0:00:44]} 33. Rh1 {[%clk 0:01:02.7]}
33... h2 {[%clk 0:00:43.5]} 34. Ke5 {[%clk 0:00:56.5]} 34... Re2+ {[%clk
0:00:42.7]} 35. Kd6 {[%clk 0:00:55.5]} 35... Kg4 {[%clk 0:00:38.6]} 36. Rff1
{[%clk 0:00:51.3]} 36... Rxc3 {[%clk 0:00:36.4]} 37. Kxc6 {[%clk 0:00:50.6]}
37... Rd3 {[%clk 0:00:28.9]} 38. Kxb5 {[%clk 0:00:50.1]} 38... Rxd4 {[%clk
0:00:26.9]} 39. Kc5 {[%clk 0:00:49.7]} 39... Rd5+ {[%clk 0:00:24.3]} 40. Kxc4
{[%clk 0:00:46.7]} 40... Rb2 {[%clk 0:00:23]} 41. Re1 {[%clk 0:00:41.5]} 41...
Rc2+ {[%clk 0:00:18.2]} 42. Kb3 {[%clk 0:00:39.5]} 42... Rg2 {[%clk 0:00:17.3]}
43. Rxe6 {[%clk 0:00:38.3]} 43... Rd3+ {[%clk 0:00:15.1]} 44. Kc4 {[%clk
0:00:37.5]} 44... Rh3 {[%clk 0:00:13.6]} 45. Rg6+ {[%clk 0:00:36.7]} 45... Kf3
{[%clk 0:00:12.9]} 46. Rf6 {[%clk 0:00:36.5]} 46... f4 {[%clk 0:00:11.1]} 47. b5
{[%clk 0:00:35.8]} 47... Rg1 {[%clk 0:00:11.2]} 48. Rxh2 {[%clk 0:00:26.5]}
48... Rxh2 {[%clk 0:00:11.3]} 49. b6 {[%clk 0:00:27]} 49... Rc1+ {[%clk
0:00:10.5]} 50. Kd5 {[%clk 0:00:25]} 50... Rd2+ {[%clk 0:00:10.2]} 51. Ke5
{[%clk 0:00:23.1]} 51... Rc5+ {[%clk 0:00:09.7]} 52. Ke6 {[%clk 0:00:20.2]}
52... Rc6+ {[%clk 0:00:10]} 53. Kf5 {[%clk 0:00:20.4]} 53... Rxf6+ {[%clk
0:00:10]} 54. Kxf6 {[%clk 0:00:20.7]} 54... Rd6+ {[%clk 0:00:10.1]} 55. Ke5
{[%clk 0:00:20]} 55... Rxb6 {[%clk 0:00:10.2]} 56. Kd5 {[%clk 0:00:19.9]} 56...
Ke3 {[%clk 0:00:09.9]} 0-1

[Event "Early-Titled-Tuesday-Blitz-October-10-2023"]
[Site "Chess.com"]
[Date "2023.10.10"]
[Round "2"]
[White "amanmuhammethommadov"]
[Black "Rikikits"]
[Result "1-0"]
[WhiteElo "2583"]
[BlackElo "2809"]
[TimeControl "180+1"]
[EndTime "8:18:20 PDT"]
[Termination "amanmuhammethommadov won on time"]

1. e4 {[%clk 0:03:00]} 1... c6 {[%clk 0:03:00.5]} 2. d4 {[%clk 0:02:59.3]} 2...
d5 {[%clk 0:03:01.1]} 3. e5 {[%clk 0:02:59.5]} 3... Bf5 {[%clk 0:03:00.9]} 4.
Nd2 {[%clk 0:02:59.5]} 4... c5 {[%clk 0:02:53.2]} 5. dxc5 {[%clk 0:02:58.2]}
5... Nc6 {[%clk 0:02:53.6]} 6. Ngf3 {[%clk 0:02:57.3]} 6... e6 {[%clk
0:02:54.1]} 7. Nb3 {[%clk 0:02:56]} 7... Bxc5 {[%clk 0:02:54.3]} 8. Bb5 {[%clk
0:02:54.4]} 8... Bb6 {[%clk 0:02:48.5]} 9. Nbd4 {[%clk 0:02:46.4]} 9... Ne7
{[%clk 0:02:48.5]} 10. Bg5 {[%clk 0:02:40.5]} 10... Bxd4 {[%clk 0:01:39.7]} 11.
Nxd4 {[%clk 0:02:40.3]} 11... Qa5+ {[%clk 0:01:40.3]} 12. c3 {[%clk 0:02:37.7]}
12... O-O {[%clk 0:01:37.5]} 13. b4 {[%clk 0:02:15.5]} 13... Qc7 {[%clk
0:01:35.1]} 14. Bxc6 {[%clk 0:02:06.4]} 14... Nxc6 {[%clk 0:01:31.2]} 15. Nxc6
{[%clk 0:02:06.1]} 15... Qxc6 {[%clk 0:01:30.6]} 16. Qd4 {[%clk 0:02:05.5]}
16... Rfc8 {[%clk 0:01:29.1]} 17. Rc1 {[%clk 0:02:00.1]} 17... a5 {[%clk
0:01:29.3]} 18. O-O {[%clk 0:01:56.9]} 18... h6 {[%clk 0:01:27.1]} 19. Be3
{[%clk 0:01:56.4]} 19... Qc4 {[%clk 0:01:25.1]} 20. Qxc4 {[%clk 0:01:53.6]}
20... Rxc4 {[%clk 0:01:26]} 21. a3 {[%clk 0:01:54.1]} 21... a4 {[%clk
0:01:23.9]} 22. Bd4 {[%clk 0:01:54]} 22... Rac8 {[%clk 0:01:23.4]} 23. f3 {[%clk
0:01:53.5]} 23... g5 {[%clk 0:01:23.2]} 24. Kf2 {[%clk 0:01:52.3]} 24... Kg7
{[%clk 0:01:22]} 25. Ke3 {[%clk 0:01:52.4]} 25... h5 {[%clk 0:01:22.4]} 26. h3
{[%clk 0:01:51.2]} 26... h4 {[%clk 0:01:22.7]} 27. f4 {[%clk 0:01:50.9]} 27...
g4 {[%clk 0:01:21.5]} 28. hxg4 {[%clk 0:01:46.5]} 28... Bxg4 {[%clk 0:01:22.4]}
29. Rh1 {[%clk 0:01:47]} 29... Rh8 {[%clk 0:01:22.2]} 30. Rh2 {[%clk 0:01:47.4]}
30... h3 {[%clk 0:01:13.2]} 31. gxh3 {[%clk 0:01:46.8]} 31... Rxh3+ {[%clk
0:01:14.1]} 32. Rxh3 {[%clk 0:01:46.6]} 32... Bxh3 {[%clk 0:01:15]} 33. Rg1+
{[%clk 0:01:45.1]} 33... Kf8 {[%clk 0:01:14.7]} 34. Rh1 {[%clk 0:01:44.8]} 34...
Bf5 {[%clk 0:01:12.2]} 35. Rh8+ {[%clk 0:01:43.9]} 35... Kg7 {[%clk 0:01:12.5]}
36. Rb8 {[%clk 0:01:41.8]} 36... Rc7 {[%clk 0:01:12.4]} 37. Bc5 {[%clk 0:01:42]}
37... Kg6 {[%clk 0:01:09.1]} 38. Kd4 {[%clk 0:01:42]} 38... Kh5 {[%clk
0:01:08.9]} 39. b5 {[%clk 0:01:36.1]} 39... Kg4 {[%clk 0:01:04.7]} 40. b6 {[%clk
0:01:36.2]} 40... Rd7 {[%clk 0:01:05.3]} 41. Ke3 {[%clk 0:01:36.1]} 41... Bg6
{[%clk 0:01:01]} 42. Bd6 {[%clk 0:01:36]} 42... f6 {[%clk 0:00:55.1]} 43. Bc7
{[%clk 0:01:32.2]} 43... fxe5 {[%clk 0:00:55.1]} 44. fxe5 {[%clk 0:01:33.1]}
44... d4+ {[%clk 0:00:51.7]} 45. cxd4 {[%clk 0:01:31.8]} 45... Rh7 {[%clk
0:00:52.2]} 46. Rxb7 {[%clk 0:01:28.5]} 46... Rh3+ {[%clk 0:00:52.3]} 47. Kd2
{[%clk 0:01:28.6]} 47... Be4 {[%clk 0:00:35.2]} 48. Ra7 {[%clk 0:01:25.6]} 48...
Rd3+ {[%clk 0:00:27.3]} 49. Ke2 {[%clk 0:01:21]} 49... Rb3 {[%clk 0:00:26.9]}
50. Rxa4 {[%clk 0:01:15.2]} 50... Kf4 {[%clk 0:00:25]} 51. d5 {[%clk 0:01:12]}
51... Rb2+ {[%clk 0:00:25.2]} 52. Kd1 {[%clk 0:01:03.9]} 52... Ke3 {[%clk
0:00:25.5]} 53. Rxe4+ {[%clk 0:01:00.8]} 53... Kxe4 {[%clk 0:00:26.4]} 54. dxe6
{[%clk 0:00:55.8]} 54... Kd3 {[%clk 0:00:26.5]} 55. Kc1 {[%clk 0:00:55.4]} 55...
Rc2+ {[%clk 0:00:16.5]} 56. Kb1 {[%clk 0:00:53.9]} 56... Kc3 {[%clk 0:00:16.1]}
57. b7 {[%clk 0:00:48.3]} 57... Rb2+ {[%clk 0:00:15.7]} 58. Kc1 {[%clk
0:00:39.5]} 58... Rxb7 {[%clk 0:00:15.5]} 59. e7 {[%clk 0:00:39.8]} 1-0

[Event "Early-Titled-Tuesday-Blitz-October-10-2023"]
[Site "Chess.com"]
[Date "2023.10.10"]
[Round "2"]
[White "colegiodemadrid"]
[Black "Rutricks"]
[Result "0-1"]
[WhiteElo "2375"]
[BlackElo "2685"]
[TimeControl "180+1"]
[EndTime "8:18:20 PDT"]
[Termination "Rutricks won on time"]

1. e4 {[%clk 0:03:00.9]} 1... g6 {[%clk 0:03:00.9]} 2. d4 {[%clk 0:02:59.9]}
2... Bg7 {[%clk 0:03:00.5]} 3. c3 {[%clk 0:02:55]} 3... c6 {[%clk 0:02:57.7]} 4.
h4 {[%clk 0:02:52.2]} 4... d5 {[%clk 0:02:58.6]} 5. e5 {[%clk 0:02:49.7]} 5...
f6 {[%clk 0:02:57.6]} 6. Nf3 {[%clk 0:02:46.6]} 6... Bg4 {[%clk 0:02:55.9]} 7.
Bf4 {[%clk 0:02:44.4]} 7... fxe5 {[%clk 0:02:53.6]} 8. Bxe5 {[%clk 0:02:41.8]}
8... Bxe5 {[%clk 0:02:53]} 9. dxe5 {[%clk 0:02:42.5]} 9... Nd7 {[%clk
0:02:52.7]} 10. Qd4 {[%clk 0:02:39.4]} 10... Bxf3 {[%clk 0:02:43]} 11. gxf3
{[%clk 0:02:40.3]} 11... e6 {[%clk 0:02:05]} 12. Bh3 {[%clk 0:02:37.5]} 12...
Qe7 {[%clk 0:02:02.7]} 13. Nd2 {[%clk 0:02:29.1]} 13... Nh6 {[%clk 0:02:02.4]}
14. h5 {[%clk 0:02:26.7]} 14... gxh5 {[%clk 0:01:57.6]} 15. O-O-O {[%clk
0:02:22.7]} 15... a6 {[%clk 0:01:02.5]} 16. Qe3 {[%clk 0:01:51.5]} 16... Nf7
{[%clk 0:00:58.7]} 17. f4 {[%clk 0:01:50]} 17... O-O-O {[%clk 0:00:59.2]} 18.
Nb3 {[%clk 0:01:41.4]} 18... Nh6 {[%clk 0:00:38.1]} 19. Nd4 {[%clk 0:01:17.2]}
19... Nc5 {[%clk 0:00:27.7]} 20. b4 {[%clk 0:01:05.7]} 20... Ne4 {[%clk
0:00:25.6]} 21. Nxe6 {[%clk 0:00:50.8]} 21... Kb8 {[%clk 0:00:26]} 22. Nxd8
{[%clk 0:00:48.5]} 22... Rxd8 {[%clk 0:00:26.9]} 23. f3 {[%clk 0:00:47.3]} 23...
Ng3 {[%clk 0:00:26.7]} 24. Rhg1 {[%clk 0:00:45.4]} 24... h4 {[%clk 0:00:26.6]}
25. Kb2 {[%clk 0:00:38.4]} 25... Rf8 {[%clk 0:00:22.4]} 26. e6 {[%clk
0:00:35.6]} 26... Qf6 {[%clk 0:00:17.8]} 27. Rde1 {[%clk 0:00:33.1]} 27... Kc7
{[%clk 0:00:10.8]} 28. e7 {[%clk 0:00:32.4]} 28... Re8 {[%clk 0:00:10.9]} 29.
Qe6 {[%clk 0:00:29.5]} 29... Qxe6 {[%clk 0:00:06.2]} 30. Rxe6 {[%clk 0:00:30.4]}
30... Ng8 {[%clk 0:00:06.2]} 31. Rge1 {[%clk 0:00:28.3]} 31... Nh5 {[%clk
0:00:06.5]} 32. f5 {[%clk 0:00:27.1]} 32... Nf4 {[%clk 0:00:06.5]} 33. f6 {[%clk
0:00:20.6]} 33... Nh6 {[%clk 0:00:06.3]} 34. f7 {[%clk 0:00:14.8]} 34... Nxf7
{[%clk 0:00:06.6]} 35. Rf6 {[%clk 0:00:15.4]} 35... Nd3+ {[%clk 0:00:06.4]} 36.
Kb3 {[%clk 0:00:11.6]} 36... Nxe1 {[%clk 0:00:04.2]} 37. Rxf7 {[%clk 0:00:12.1]}
37... Kd6 {[%clk 0:00:04.8]} 38. Rxh7 {[%clk 0:00:10.4]} 38... Nxf3 {[%clk
0:00:04.8]} 39. Bg4 {[%clk 0:00:08.3]} 39... Ne5 {[%clk 0:00:04.5]} 40. Rxh4
{[%clk 0:00:05.1]} 40... Rxe7 {[%clk 0:00:04.5]} 41. Bf5 {[%clk 0:00:04.3]}
41... Nc4 {[%clk 0:00:04.5]} 42. Rh6+ {[%clk 0:00:04]} 42... Kc7 {[%clk
0:00:04.6]} 43. Be6 {[%clk 0:00:03]} 43... Rg7 {[%clk 0:00:04.5]} 44. Rf6 {[%clk
0:00:02.3]} 44... Rg2 {[%clk 0:00:04.5]} 45. Rf7+ {[%clk 0:00:02.6]} 45... Kb6
{[%clk 0:00:05]} 0-1